bitfinex/quotes_BTCUSD_20251201
["timestamp","ask_amount","ask_price","bid_price","bid_amount"]
[1764575490824,0.23084811,86639.0,86633.0,0.01154294]
[1764575491022,0.23084645,86638.0,86635.0,0.24539418]
[1764575491201,0.24239025,86639.0,86636.0,0.2308503]
[1764575491400,0.01154108,86647.0,86638.0,0.01154227]
[1764575491566,0.24237318,86644.0,86640.0,0.24238008]
[1764575491771,0.01154148,86644.0,86640.0,0.24238008]
[1764575491971,0.01154161,86643.0,86639.0,0.23084274]
[1764575492355,0.01154161,86643.0,86641.0,0.23083657]
[1764575492845,0.01154187,86641.0,86634.0,0.23085494]
[1764575493047,0.01154161,86643.0,86640.0,0.002]
[1764575493352,0.23083759,86641.0,86640.0,0.002]
[1764575493557,0.230837,86642.0,86640.0,0.002]
[1764575493778,0.230837,86642.0,86639.0,0.23084225]
[1764575493904,0.24237874,86642.0,86641.0,0.002]
[1764575495127,0.24237874,86642.0,86639.0,0.24238439]
[1764575495464,0.24237874,86642.0,86640.0,0.003]
[1764575495867,0.24237874,86642.0,86639.0,0.24238439]
[1764575496086,0.24237874,86642.0,86641.0,0.003]
[1764575496521,0.24237874,86642.0,86640.0,0.23083946]
[1764575496737,0.24237874,86642.0,86640.0,0.23383946]
[1764575496954,0.24237874,86642.0,86640.0,0.23083946]
[1764575497267,0.24237874,86642.0,86641.0,0.003]
[1764575497467,0.01154174,86642.0,86641.0,0.003]
[1764575497670,0.24237399,86643.0,86641.0,0.23383759]
[1764575497868,0.01154161,86643.0,86641.0,0.003]
[1764575498080,0.23083492,86642.0,86641.0,0.003]
[1764575498274,0.24237343,86644.0,86641.0,0.003]
[1764575498487,0.23083417,86643.0,86641.0,0.003]
[1764575498682,0.23083492,86642.0,86641.0,0.003]
[1764575498907,0.23083492,86642.0,86639.0,0.24238454]
[1764575499237,0.23083492,86642.0,86640.0,0.003]
[1764575499438,0.23083759,86641.0,86640.0,0.003]
[1764575499890,0.24237578,86643.0,86640.0,0.23083903]
[1764575500087,0.24237578,86643.0,86639.0,0.24238491]
[1764575500088,0.23083524,86642.0,86639.0,0.24238491]
[1764575500292,0.23083524,86642.0,86641.0,0.003]
[1764575500423,0.23083492,86642.0,86641.0,0.003]
[1764575501031,0.24237578,86643.0,86641.0,0.003]
[1764575501244,0.23721215,86644.0,86641.0,0.23383737]
[1764575501447,0.23721215,86644.0,86641.0,0.23083737]
[1764575501669,0.23081888,86649.0,86642.0,0.23083461]
[1764575503611,0.23082379,86647.0,86643.0,0.24237155]
[1764575503830,0.23082379,86647.0,86643.0,0.01154161]
[1764575504009,0.01154094,86648.0,86643.0,0.24237174]
[1764575504406,0.33454081,86649.0,86644.0,0.23082897]
[1764575504794,0.323,86649.0,86647.0,0.23081959]
[1764575504984,0.56535732,86649.0,86646.0,0.01154121]
[1764575505182,0.23081916,86648.0,86645.0,0.2423665]
[1764575505476,0.56535732,86649.0,86646.0,0.23082378]
[1764575505850,0.01154028,86653.0,86648.0,0.23081645]
[1764575506088,0.01154028,86653.0,86649.0,0.24235651]
[1764575506334,0.23078511,86661.0,86649.0,0.24235651]
[1764575506335,0.23079752,86657.0,86653.0,0.23080522]
[1764575506867,0.23079799,86656.0,86653.0,0.23080522]
[1764575508039,0.24234191,86655.0,86652.0,0.24234356]
[1764575508329,0.23080351,86654.0,86653.0,0.001]
[1764575508484,0.01154001,86655.0,86653.0,0.001]
[1764575508907,0.24234274,86655.0,86653.0,0.001]
[1764575509085,0.23080296,86654.0,86651.0,0.24235116]
[1764575509280,0.56533483,86657.0,86651.0,0.24234883]
[1764575509507,0.23079786,86656.0,86653.0,0.23180314]
[1764575509712,0.56533483,86657.0,86654.0,0.23080075]
[1764575510267,0.23079952,86656.0,86653.0,0.24334542]
[1764575510689,0.35061908,86662.0,86659.0,0.23078739]
[1764575510892,0.323,86660.0,86658.0,0.24232972]
[1764575511718,0.55378724,86660.0,86658.0,0.23079011]
[1764575512061,0.55386919,86660.0,86658.0,0.23079011]
[1764575512215,0.23079021,86659.0,86656.0,0.2423369]
[1764575512395,0.56540853,86660.0,86656.0,0.2423369]
[1764575512597,8.156e-05,86660.0,86658.0,0.23079128]
[1764575512788,8.156e-05,86660.0,86659.0,0.23078964]
[1764575514249,8.156e-05,86660.0,86659.0,0.24596964]
[1764575514446,8.156e-05,86660.0,86659.0,0.36291482]
[1764575514663,8.156e-05,86660.0,86659.0,0.27048964]
[1764575516459,8.156e-05,86660.0,86659.0,0.26389964]
[1764575519461,8.156e-05,86660.0,86659.0,0.23937964]
[1764575519664,8.156e-05,86660.0,86659.0,0.23078964]
[1764575521126,8.156e-05,86660.0,86659.0,0.27048964]
[1764575521312,8.156e-05,86660.0,86659.0,0.36291482]
[1764575529290,8.156e-05,86660.0,86659.0,0.37023482]
[1764575538404,8.156e-05,86660.0,86659.0,0.37123482]
[1764575539322,8.156e-05,86660.0,86659.0,0.37823482]
[1764575551173,0.00025343,86698.0,86697.0,0.23068848]
[1764575551414,0.00064644,86698.0,86697.0,0.25817848]
[1764575551618,0.00064644,86698.0,86697.0,0.28068848]
[1764575551917,0.00064644,86698.0,86696.0,0.2306909]
[1764575552119,0.00064644,86698.0,86696.0,0.24278898]
[1764575552270,0.00064644,86698.0,86697.0,0.23068848]
[1764575553708,0.00064644,86698.0,86696.0,0.23068918]
[1764575553913,0.00064644,86698.0,86697.0,0.23068848]
[1764575554309,0.00064644,86698.0,86696.0,0.23068918]
[1764575554510,0.00164644,86698.0,86697.0,0.23068848]
[1764575554768,0.00264644,86698.0,86697.0,0.23068848]
[1764575554938,0.01153442,86697.0,86694.0,0.01086]
[1764575555116,0.23070849,86690.0,86685.0,0.23071902]
[1764575555335,0.23070762,86690.0,86686.0,0.23071555]
[1764575555715,0.01153522,86691.0,86686.0,0.01153588]
[1764575555899,0.01153522,86691.0,86689.0,0.23070965]
[1764575556277,0.23071227,86689.0,86687.0,0.09242518]
[1764575556476,0.2422449,86690.0,86687.0,0.09242518]
[1764575556720,0.23071061,86689.0,86687.0,0.09242518]
[1764575556893,0.23071141,86689.0,86687.0,0.09242518]
[1764575557098,0.23071244,86688.0,86687.0,0.09242518]
[1764575557639,0.23071082,86689.0,86687.0,0.09242518]
[1764575557840,0.24224379,86690.0,86687.0,0.32313877]
[1764575558042,0.01153522,86691.0,86688.0,0.23071208]
[1764575558342,0.23070256,86692.0,86688.0,0.2422477]
[1764575558541,0.23070256,86692.0,86688.0,0.2647577]
[1764575558743,0.24223764,86692.0,86689.0,0.23070932]
[1764575559561,0.24223764,86692.0,86689.0,0.24280932]
[1764575560528,0.23070711,86690.0,86689.0,0.0121]
[1764575561318,0.24223764,86692.0,86689.0,0.0121]
[1764575561684,0.23071879,86686.0,86682.0,0.26044369]
[1764575561888,0.23071818,86686.0,86684.0,0.23072272]
[1764575562091,0.24225406,86686.0,86683.0,0.2422616]
[1764575562534,0.24225406,86686.0,86684.0,0.23072266]
[1764575562915,0.23070924,86690.0,86686.0,0.24225133]
[1764575563138,0.23070924,86690.0,86687.0,0.23071413]
[1764575563336,0.23070924,86690.0,86688.0,0.23071235]
[1764575563543,0.23070924,86690.0,86687.0,0.24224988]
[1764575563544,0.23070924,86690.0,86687.0,0.01153575]
[1764575564472,0.23170924,86690.0,86687.0,0.01153575]
[1764575564974,0.23170924,86690.0,86687.0,0.24224872]
[1764575565373,0.01153548,86689.0,86686.0,0.01153588]
[1764575565683,0.2307151,86687.0,86683.0,0.24226075]
[1764575565861,0.01153562,86688.0,86685.0,0.23072037]
[1764575566185,0.01153562,86688.0,86684.0,0.01153615]
[1764575566186,0.23071543,86687.0,86684.0,0.24225855]
[1764575566406,0.23170769,86690.0,86673.0,0.02251]
[1764575566407,0.01153695,86678.0,86673.0,0.02251]
[1764575566599,0.24227209,86680.0,86676.0,0.01153721]
[1764575566801,0.24226395,86683.0,86678.0,0.24227582]
[1764575567028,0.24226395,86683.0,86679.0,0.23073597]
[1764575567194,0.24226506,86682.0,86680.0,0.2307336]
[1764575567401,0.24226395,86683.0,86680.0,0.24227028]
[1764575567599,0.24225374,86686.0,86681.0,0.01153655]
[1764575567805,0.23072308,86684.0,86680.0,0.01153668]
[1764575568067,0.01153628,86683.0,86680.0,0.23073138]
[1764575568425,0.24226434,86683.0,86680.0,0.23073138]
[1764575568627,0.24226434,86683.0,86681.0,0.23073046]
[1764575568826,0.24225879,86685.0,86682.0,0.2307278]
[1764575569030,0.23072343,86684.0,86681.0,0.24226701]
[1764575569231,0.01153575,86687.0,86681.0,0.01153655]
[1764575569453,0.23072524,86684.0,86681.0,0.24226619]
[1764575569628,0.23072662,86683.0,86680.0,0.24226513]
[1764575570255,0.23072662,86683.0,86681.0,0.23072969]
[1764575570458,0.01153628,86683.0,86679.0,0.23073627]
[1764575570642,0.2307308,86682.0,86680.0,0.23073283]
[1764575570855,0.24225699,86685.0,86682.0,0.23072826]
[1764575571202,0.24225699,86685.0,86682.0,0.2307276]
[1764575571203,0.23072355,86684.0,86682.0,0.2307276]
[1764575572030,0.24225699,86685.0,86682.0,0.2307276]
[1764575573472,0.24226086,86684.0,86678.0,0.02305695]
[1764575573626,0.23072309,86684.0,86681.0,0.23073013]
[1764575573825,0.00876,86687.0,86683.0,0.24225961]
[1764575573826,0.2394758,86687.0,86683.0,0.24225961]
[1764575574036,0.23071866,86686.0,86683.0,0.01153628]
[1764575574259,0.02029575,86687.0,86683.0,0.2422607]
[1764575574455,0.23071876,86686.0,86683.0,0.24226149]
[1764575575665,0.25201164,86687.0,86684.0,0.23072175]
[1764575576200,0.00976,86687.0,86685.0,0.2307184]
[1764575576628,0.23947524,86687.0,86685.0,0.2307184]
[1764575577020,0.00876,86687.0,86685.0,0.2307184]
[1764575577215,0.2394758,86687.0,86685.0,0.2307184]
[1764575577439,0.00876,86687.0,86686.0,0.23071776]
[1764575577642,0.00976,86687.0,86685.0,0.2307184]
[1764575578043,0.00976,86687.0,86684.0,0.01153615]
[1764575578246,0.01153615,86684.0,86680.0,0.24226919]
[1764575578448,0.2422557,86686.0,86683.0,0.23072499]
[1764575578647,0.01153588,86686.0,86684.0,0.23072307]
[1764575578849,0.00976,86687.0,86685.0,0.23071969]
[1764575579052,0.23071796,86686.0,86684.0,0.24225702]
[1764575579252,0.25201278,86687.0,86684.0,0.24225702]
[1764575579457,0.00976,86687.0,86685.0,0.23071845]
[1764575579662,0.23071852,86686.0,86683.0,0.01153628]
[1764575579976,0.2422544,86686.0,86683.0,0.01153628]
[1764575580134,0.01153588,86686.0,86684.0,0.23072283]
[1764575580338,0.00876,86687.0,86686.0,0.23071776]
[1764575580550,0.00876,86687.0,86685.0,0.23071971]
[1764575580752,0.01153415,86699.0,86692.0,0.01153508]
[1764575580954,0.02490334,86709.0,86697.0,0.25759848]
[1764575581268,0.24217341,86715.0,86697.0,0.25759848]
[1764575581605,0.01153242,86712.0,86697.0,0.28132848]
[1764575581804,0.64523416,86710.0,86697.0,0.05064]
[1764575582017,0.2422024,86705.0,86697.0,0.25759848]
[1764575582142,0.01153362,86703.0,86697.0,0.25759848]
[1764575582339,0.24220929,86702.0,86697.0,0.01252]
[1764575582596,0.24220929,86702.0,86697.0,0.001]
[1764575582816,0.01153349,86704.0,86696.0,0.24221041]
[1764575583104,0.00364644,86698.0,86697.0,0.26980848]
[1764575583386,0.01153482,86694.0,86688.0,0.25376796]
[1764575583612,0.24222574,86696.0,86690.0,0.2307045]
[1764575583844,0.24222356,86697.0,86692.0,0.01153508]
[1764575584083,0.24222356,86697.0,86693.0,0.01153495]
[1764575584319,0.24222356,86697.0,86693.0,0.24223148]
[1764575584320,0.24222308,86697.0,86693.0,0.24223148]
[1764575584557,0.00064644,86698.0,86697.0,0.23068848]
[1764575585008,0.00064644,86698.0,86695.0,0.24222833]
[1764575585262,0.2422283,86696.0,86691.0,0.23070317]
[1764575585496,0.2422285,86695.0,86691.0,0.24223839]
[1764575585732,0.01153482,86694.0,86690.0,0.230707]
[1764575585948,0.01153482,86694.0,86690.0,0.01153535]
[1764575586174,0.23069949,86693.0,86690.0,0.24224171]
[1764575586864,0.2422273,86696.0,86692.0,0.01153508]
[1764575587111,0.23069476,86695.0,86692.0,0.25762441]
[1764575587344,0.24286768,86698.0,86694.0,0.23069496]
[1764575587798,0.00064644,86698.0,86695.0,0.24222706]
[1764575588018,0.00064644,86698.0,86697.0,0.02691]
[1764575588469,0.00064644,86698.0,86697.0,0.25759848]
[1764575589129,0.00064644,86698.0,86697.0,0.02691]
[1764575589362,0.00064644,86698.0,86697.0,0.25759848]
[1764575590496,0.00064644,86698.0,86697.0,0.28132848]
[1764575594264,0.00064644,86698.0,86697.0,0.25759848]
[1764575594501,0.00064644,86698.0,86697.0,0.28132848]
[1764575604400,0.00064644,86698.0,86697.0,0.28332848]
[1764575604966,0.00064644,86698.0,86697.0,0.002]
[1764575605170,0.23133226,86698.0,86697.0,0.002]
[1764575605440,0.30493715,86698.0,86697.0,0.002]
[1764575606259,0.23133226,86698.0,86697.0,0.002]
[1764575607052,0.63437525,86698.0,86697.0,0.002]
[1764575607252,0.01153615,86684.0,86679.0,0.01153681]
[1764575607457,0.01153615,86684.0,86678.0,0.26705862]
[1764575607458,0.01153615,86684.0,86678.0,0.27859557]
[1764575607656,0.23072838,86683.0,86679.0,0.23073612]
[1764575607974,0.24225111,86687.0,86683.0,0.01153628]
[1764575608207,0.00876,86689.0,86684.0,0.01153615]
[1764575608377,0.00876,86689.0,86686.0,0.23071746]
[1764575608622,0.00876,86689.0,86687.0,0.23071483]
[1764575608801,0.00876,86689.0,86686.0,0.24225341]
[1764575609005,0.2510054,86689.0,86685.0,0.01153602]
[1764575609165,0.2510054,86689.0,86683.0,0.03633628]
[1764575609166,0.23071772,86687.0,86683.0,0.002]
[1764575609333,0.23072075,86685.0,86683.0,0.002]
[1764575609772,0.23071924,86686.0,86683.0,0.002]
[1764575609979,0.24225512,86686.0,86683.0,0.002]
[1764575610183,0.01153575,86687.0,86683.0,0.002]
[1764575610383,0.01153588,86686.0,86683.0,0.002]
[1764575610729,0.00876,86689.0,86685.0,0.01153602]
[1764575610924,0.63331788,86695.0,86690.0,0.01153535]
[1764575611131,0.23071244,86688.0,86687.0,0.002]
[1764575611286,0.23072099,86685.0,86683.0,0.001]
[1764575611483,0.23072308,86684.0,86683.0,0.001]
[1764575611708,0.32822243,86684.0,86683.0,0.004]
[1764575612121,0.09749935,86684.0,86680.0,0.01153668]
[1764575612296,0.24225808,86685.0,86682.0,0.23072588]
[1764575612481,0.23072308,86684.0,86683.0,0.001]
[1764575612901,0.23072308,86684.0,86681.0,0.24226677]
[1764575613139,0.01153615,86684.0,86681.0,0.24160677]
[1764575613593,0.24225964,86684.0,86681.0,0.24160677]
[1764575613746,0.23072381,86684.0,86681.0,0.01087655]
[1764575613952,0.24225996,86684.0,86681.0,0.24160718]
[1764575614297,0.01153602,86685.0,86683.0,0.001]
[1764575614419,0.01153602,86685.0,86682.0,0.01153642]
[1764575614420,0.24225821,86685.0,86682.0,0.01153642]
[1764575614621,0.01153602,86685.0,86682.0,0.01153642]
[1764575614824,0.24226114,86684.0,86681.0,0.001]
[1764575615131,0.24226142,86685.0,86682.0,0.24226478]
[1764575615805,0.01153548,86689.0,86684.0,0.01153615]
[1764575616000,0.23071021,86689.0,86686.0,0.24225115]
[1764575616203,1.18701944,86693.0,86687.0,0.01153575]
[1764575616204,0.01153508,86692.0,86687.0,0.01153575]
[1764575616382,0.2307085,86690.0,86686.0,0.24225115]
[1764575616702,0.24224008,86691.0,86687.0,0.24225016]
[1764575616858,0.23070724,86690.0,86687.0,0.24225016]
[1764575617074,0.24223696,86692.0,86688.0,0.24224802]
[1764575617278,0.01885482,86694.0,86690.0,0.01153535]
[1764575617469,0.23070136,86693.0,86690.0,0.01153535]
[1764575617661,0.01153482,86694.0,86689.0,0.02282548]
[1764575617866,0.01153482,86694.0,86689.0,0.01129]
[1764575617867,0.2422395,86692.0,86689.0,0.01129]
[1764575618281,0.01153562,86688.0,86684.0,0.23072307]
[1764575618477,0.24224246,86690.0,86685.0,0.01153602]
[1764575618715,0.24223805,86692.0,86688.0,0.23071109]
[1764575618867,0.63396432,86698.0,86692.0,0.01153508]
[1764575619070,0.01153469,86695.0,86691.0,0.2577244]
[1764575619285,0.01153469,86695.0,86691.0,0.25352962]
[1764575619286,0.23069382,86695.0,86691.0,0.25352962]
[1764575619518,0.23069953,86693.0,86691.0,0.02282522]
[1764575619697,0.01153482,86694.0,86691.0,0.01129]
[1764575619898,0.01153482,86694.0,86684.0,0.0233]
[1764575619899,0.01153535,86690.0,86682.0,0.01129]
[1764575620101,0.24225743,86685.0,86680.0,0.24227028]
[1764575620282,0.2307351,86680.0,86676.0,0.24228159]
[1764575620644,0.01153655,86681.0,86678.0,0.24227557]
[1764575620645,0.24226989,86681.0,86678.0,0.24227557]
[1764575620845,0.64485376,86686.0,86681.0,0.24226544]
[1764575621008,0.24225416,86686.0,86682.0,0.23072788]
[1764575621223,0.01153681,86679.0,86673.0,0.01153761]
[1764575621418,0.24226209,86683.0,86678.0,0.01153695]
[1764575621584,0.01153628,86683.0,86679.0,0.01153681]
[1764575621787,0.01153788,86671.0,86666.0,0.01129]
[1764575621987,0.01153748,86674.0,86667.0,0.00732]
[1764575622191,0.24229593,86671.0,86667.0,0.00732]
[1764575622503,0.23076332,86669.0,86667.0,0.00732]
[1764575622705,0.01136344,86670.0,86669.0,0.01573]
[1764575622909,0.24251722,86670.0,86669.0,0.01573]
[1764575623821,0.00039277,86670.0,86669.0,0.24649301]
[1764575624024,0.00039277,86670.0,86669.0,0.01573]
[1764575624227,0.00039277,86670.0,86669.0,0.24649301]
[1764575624431,0.00039277,86670.0,86669.0,0.03903]
[1764575624821,0.00039277,86670.0,86669.0,0.27179301]
[1764575625240,0.00039277,86670.0,86669.0,0.002]
[1764575625416,0.00039277,86670.0,86669.0,0.24849301]
[1764575625931,0.00039277,86670.0,86669.0,0.27179301]
[1764575634966,0.00039277,86670.0,86669.0,0.01773]
[1764575635080,0.00039277,86670.0,86669.0,0.002]
[1764575635648,0.00039277,86670.0,86669.0,0.23276301]
[1764575635864,0.00039277,86670.0,86669.0,0.002]
[1764575635865,0.23115312,86670.0,86669.0,0.002]
[1764575639483,0.33889878,86670.0,86669.0,0.002]
[1764575639928,0.73318177,86670.0,86669.0,0.002]
[1764575640131,0.75808366,86670.0,86669.0,0.002]
[1764575640788,0.23081361,86650.0,86649.0,0.012]
[1764575641008,0.23081133,86651.0,86616.0,0.46180709]
[1764575641009,0.01154054,86651.0,86636.0,0.09242518]
[1764575641267,0.01154054,86651.0,86623.0,0.012]
[1764575641268,0.24239931,86635.0,86626.0,0.02309]
[1764575641443,0.24240185,86633.0,86628.0,0.01154361]
[1764575641778,0.01154374,86627.0,86620.0,0.00732]
[1764575641926,0.01154441,86622.0,86617.0,0.02354507]
[1764575642116,0.01154427,86623.0,86617.0,0.02354507]
[1764575642315,0.01154414,86624.0,86617.0,0.25444568]
[1764575642517,0.01154387,86626.0,86619.0,0.01154481]
[1764575642870,0.01154361,86628.0,86623.0,0.01154427]
[1764575643068,0.01154347,86629.0,86623.0,0.01154427]
[1764575643218,0.01154347,86629.0,86624.0,0.23088258]
[1764575643219,0.24241378,86629.0,86624.0,0.23088258]
[1764575643437,0.01154361,86628.0,86623.0,0.01154427]
[1764575643651,0.01154361,86628.0,86624.0,0.24242685]
[1764575643851,0.24241678,86628.0,86624.0,0.24242685]
[1764575644259,0.63331788,86633.0,86627.0,0.23087367]
[1764575644474,0.24239891,86635.0,86626.0,0.01154387]
[1764575644752,0.01154321,86631.0,86626.0,0.01154387]
[1764575644910,0.01154307,86632.0,86627.0,0.01154374]
[1764575645113,0.01154307,86632.0,86628.0,0.01154361]
[1764575645355,0.23086566,86631.0,86627.0,0.01154374]
[1764575645505,0.01154307,86632.0,86628.0,0.01154361]
[1764575645698,0.01154267,86635.0,86628.0,0.01154361]
[1764575645699,0.01154281,86634.0,86629.0,0.24241192]
[1764575645937,0.24239935,86634.0,86629.0,0.01154347]
[1764575646103,0.01154281,86634.0,86630.0,0.24240946]
[1764575646306,0.24240001,86634.0,86630.0,0.24240946]
[1764575646514,0.01154281,86634.0,86631.0,0.24240619]
[1764575646713,0.23085941,86633.0,86629.0,0.01154347]
[1764575647069,0.24240185,86633.0,86629.0,0.24241293]
[1764575647706,0.01154281,86634.0,86631.0,0.2308642]
[1764575647917,0.24238392,86640.0,86634.0,0.01154281]
[1764575648145,0.01154174,86642.0,86636.0,0.01154254]
[1764575648287,0.24237707,86642.0,86637.0,0.01154241]
[1764575648501,0.01154161,86643.0,86638.0,0.01154227]
[1764575648880,0.01154161,86643.0,86639.0,0.01154214]
[1764575649085,0.01886148,86644.0,86639.0,0.01154214]
[1764575649290,0.001,86642.0,86639.0,0.24238436]
[1764575649504,0.23083237,86643.0,86639.0,0.24238436]
[1764575649698,0.01886148,86644.0,86640.0,0.23084022]
[1764575649951,0.01886148,86644.0,86640.0,0.24238223]
[1764575649952,0.001,86643.0,86640.0,0.24238223]
[1764575650080,0.00732,86644.0,86641.0,0.24237723]
[1764575650275,0.00732,86644.0,86642.0,0.23083236]
[1764575650711,0.01154121,86646.0,86643.0,0.23083226]
[1764575650871,0.01154134,86645.0,86640.0,0.24237993]
[1764575651116,0.01154254,86636.0,86630.0,0.24241003]
[1764575651319,0.24239907,86634.0,86626.0,0.01886387]
[1764575651573,0.01154361,86628.0,86622.0,0.09242518]
[1764575651881,0.01154401,86625.0,86622.0,0.09250674]
[1764575652090,0.01154401,86625.0,86622.0,8.156e-05]
[1764575652091,0.23964556,86623.0,86622.0,8.156e-05]
[1764575653038,0.31324927,86623.0,86622.0,0.00108156]
[1764575653233,0.23088556,86623.0,86622.0,0.00108156]
[1764575653434,0.23088556,86623.0,86622.0,8.156e-05]
[1764575653939,0.23088302,86624.0,86622.0,0.01521156]
[1764575654132,0.23088556,86623.0,86622.0,0.01521156]
[1764575654340,0.23964556,86623.0,86622.0,8.156e-05]
[1764575654538,0.66809575,86623.0,86622.0,8.156e-05]
[1764575654749,0.66809575,86623.0,86622.0,0.00108156]
[1764575654958,0.66809575,86623.0,86622.0,8.156e-05]
[1764575655410,0.73061874,86623.0,86622.0,8.156e-05]
[1764575655896,0.73361874,86623.0,86622.0,8.156e-05]
[1764575656110,0.73061874,86623.0,86622.0,8.156e-05]
[1764575656489,0.73361874,86623.0,86622.0,8.156e-05]
[1764575656715,0.73461874,86623.0,86622.0,8.156e-05]
[1764575657700,0.73161874,86623.0,86622.0,8.156e-05]
[1764575657894,2.73161874,86623.0,86622.0,8.156e-05]
[1764575658327,2.73561874,86623.0,86622.0,8.156e-05]
[1764575660650,0.73561874,86623.0,86622.0,8.156e-05]
[1764575660864,2.63892855,86623.0,86622.0,8.156e-05]
[1764575661073,0.63892855,86623.0,86622.0,8.156e-05]
[1764575661275,0.64624855,86623.0,86622.0,0.00272323]
[1764575661995,0.64124855,86623.0,86622.0,0.00272323]
[1764575662411,0.64624855,86623.0,86622.0,0.00272323]
[1764575663614,0.75995146,86623.0,86622.0,0.00272323]
[1764575663811,0.64124855,86623.0,86622.0,0.00272323]
[1764575664013,0.64424855,86623.0,86622.0,0.00272323]
[1764575665215,0.66904055,86623.0,86622.0,0.00272323]
[1764575665917,0.57296556,86623.0,86622.0,0.00272323]
[1764575666138,0.33476,86623.0,86622.0,0.00272323]
[1764575666342,0.56564556,86623.0,86622.0,0.00272323]
[1764575666744,0.24264556,86623.0,86622.0,0.00272323]
[1764575667284,0.003,86623.0,86622.0,0.00272323]
[1764575667517,0.23388556,86623.0,86622.0,0.00272323]
[1764575667666,0.24264556,86623.0,86622.0,0.00272323]
[1764575671699,0.25140556,86623.0,86622.0,0.00272323]
[1764575671882,0.76039435,86623.0,86622.0,0.00272323]
[1764575672907,0.66179501,86623.0,86622.0,0.00272323]
[1764575673443,0.59927202,86623.0,86622.0,0.00272323]
[1764575674078,0.63031041,86623.0,86622.0,0.00272323]
[1764575675936,0.59051202,86623.0,86622.0,0.00272323]
[1764575676707,0.59927202,86623.0,86622.0,0.00272323]
[1764575677548,0.59051202,86623.0,86622.0,0.00272323]
[1764575678146,0.25875202,86623.0,86622.0,0.00272323]
[1764575679785,0.26751202,86623.0,86622.0,0.00272323]
[1764575681286,0.003,86623.0,86622.0,0.27452145]
[1764575681484,0.003,86623.0,86622.0,0.36694663]
[1764575681909,0.01154254,86636.0,86627.0,0.01154374]
[1764575682099,0.01154334,86630.0,86622.0,0.01874323]
[1764575682291,0.001,86623.0,86622.0,0.00272323]
[1764575682520,0.24242179,86626.0,86622.0,0.23361113]
[1764575682666,0.24242179,86626.0,86622.0,0.24515554]
[1764575682866,0.24242179,86626.0,86622.0,0.24715554]
[1764575683072,0.23088029,86625.0,86622.0,0.24515554]
[1764575683459,0.24241259,86630.0,86627.0,0.23087462]
[1764575684331,0.01154334,86630.0,86628.0,0.23087172]
[1764575684479,0.24240968,86631.0,86628.0,0.23087172]
[1764575684676,0.01154281,86634.0,86630.0,0.01154334]
[1764575684880,0.23086227,86632.0,86630.0,0.01154334]
[1764575685096,0.24240534,86632.0,86629.0,0.23086158]
[1764575685272,0.23086469,86631.0,86628.0,0.24241548]
[1764575685477,0.01154307,86632.0,86629.0,0.23086727]
[1764575685677,0.24239546,86636.0,86630.0,0.24241004]
[1764575685885,0.26729763,86637.0,86631.0,0.01154321]
[1764575686089,0.01154241,86637.0,86631.0,0.24240222]
[1764575686294,0.01154267,86635.0,86628.0,0.01154361]
[1764575686499,0.24240217,86633.0,86629.0,0.2308671]
[1764575686739,0.23086175,86632.0,86630.0,0.23086647]
[1764575686942,0.24240217,86633.0,86630.0,0.23086564]
[1764575687134,0.24239905,86634.0,86631.0,0.23086409]
[1764575687326,0.24239905,86634.0,86627.0,0.24241626]
[1764575687327,0.01154401,86625.0,86619.0,0.01154481]
[1764575687640,0.00876,86623.0,86622.0,0.23360927]
[1764575688567,0.00876,86628.0,86626.0,0.23087533]
[1764575689042,0.00876,86628.0,86627.0,0.2308749]
[1764575689269,0.00876,86628.0,86626.0,0.23087533]
[1764575690390,0.25117585,86628.0,86622.0,0.33758044]
[1764575690605,0.25117585,86628.0,86625.0,0.23088006]
[1764575690824,0.24241947,86627.0,86624.0,0.23088212]
[1764575691011,0.2424192,86627.0,86625.0,0.2308792]
[1764575691219,0.00876,86628.0,86626.0,0.23087698]
[1764575691353,0.00876,86628.0,86627.0,0.2308749]
[1764575691779,0.00876,86634.0,86632.0,0.23086134]
[1764575692187,0.91800568,86640.0,86636.0,0.24238821]
[1764575692188,0.33176,86639.0,86636.0,0.24238821]
[1764575692393,0.33176,86639.0,86637.0,0.23084809]
[1764575692596,0.56260397,86639.0,86637.0,0.23084761]
[1764575692775,0.24238785,86638.0,86634.0,0.24239905]
[1764575693109,0.24238785,86638.0,86635.0,0.23085296]
[1764575693286,0.24239281,86637.0,86634.0,0.23085624]
[1764575694307,0.24338785,86638.0,86635.0,0.2308514]
[1764575694667,0.23184723,86638.0,86635.0,0.24239407]
[1764575694880,0.001,86638.0,86637.0,0.23084825]
[1764575695271,0.00876,86639.0,86638.0,0.23084558]
[1764575695472,0.24237052,86645.0,86641.0,0.23083518]
[1764575695706,0.2308317,86644.0,86642.0,0.01189]
[1764575695865,0.25112588,86646.0,86643.0,0.23083214]
[1764575696071,0.01154134,86645.0,86640.0,0.01154201]
[1764575696311,0.23083638,86642.0,86639.0,0.24273156]
[1764575696510,0.24237812,86642.0,86639.0,0.24273156]
[1764575696781,0.24237564,86643.0,86640.0,0.23083919]
[1764575696920,0.01154187,86641.0,86633.0,0.01189]
[1764575697122,0.23084795,86638.0,86634.0,0.23085616]
[1764575697437,0.23084795,86638.0,86633.0,0.24274863]
[1764575697842,0.01154254,86636.0,86633.0,0.25429157]
[1764575698209,0.23085391,86635.0,86633.0,0.01189]
[1764575698662,0.01154254,86636.0,86630.0,0.24240971]
[1764575698963,0.24240147,86634.0,86629.0,0.01154347]
[1764575699512,0.01154307,86632.0,86628.0,0.25430583]
[1764575699714,0.242407,86632.0,86629.0,0.23086762]
[1764575700017,0.01154347,86629.0,86625.0,0.01189]
[1764575700211,0.24241803,86628.0,86625.0,0.01189]
[1764575700433,0.23087756,86626.0,86625.0,0.01189]
[1764575700633,0.23087756,86626.0,86622.0,0.23360949]
[1764575700817,0.23086911,86630.0,86626.0,0.24242088]
[1764575701043,0.00876,86645.0,86626.0,0.24242088]
[1764575701044,0.01154227,86638.0,86634.0,0.23085394]
[1764575701232,0.33454134,86645.0,86638.0,0.24238712]
[1764575701442,0.23083708,86642.0,86638.0,0.01154227]
[1764575701644,0.56537394,86643.0,86640.0,0.2308382]
[1764575701844,0.01154148,86644.0,86639.0,0.24238435]
[1764575702093,0.24237875,86642.0,86638.0,0.24238596]
[1764575702258,0.01154174,86642.0,86638.0,0.24238596]
[1764575702462,0.2308377,86641.0,86638.0,0.24238596]
[1764575702777,0.24237886,86642.0,86639.0,0.23084173]
[1764575702985,0.01154174,86642.0,86640.0,0.23083994]
[1764575703345,0.00732,86647.0,86643.0,0.01154161]
[1764575703549,0.01154134,86645.0,86642.0,0.01154174]
[1764575703744,0.24236993,86645.0,86642.0,0.24237445]
[1764575703970,0.24236993,86645.0,86641.0,0.24237717]
[1764575704189,0.23958432,86646.0,86643.0,0.23083134]
[1764575704769,0.25112553,86646.0,86642.0,0.24237607]
[1764575704983,0.24237069,86645.0,86642.0,0.24237607]
[1764575705975,0.25213058,86646.0,86643.0,0.24237312]